[Event "FIDE Women's Grand Swiss 2023"]
[Site "Villa Marina, Douglas, Isle of Man, Isle Of Man"]
[Date "2023.10.30"]
[Round "6.1"]
[White "Muzychuk, Anna"]
[Black "Assaubayeva, Bibisara"]
[Result "1-0"]
[TimeControl "40/90 + 30 + 30s/move"]
[WhiteFideId "14111330"]
[BlackFideId "13708694"]
[WhiteElo "2510"]
[BlackElo "2469"]

1. e4 {[%clk 01:30:56]} {[%emt 00:00:04]} c5 {[%clk 01:30:53]} {[%emt
00:00:07]} 2. c3 {[%clk 01:31:19]} {[%emt 00:00:07]} d5 {[%clk 01:30:40]}
{[%emt 00:00:43]} 3. exd5 {[%clk 01:31:40]} {[%emt 00:00:09]} Qxd5 {[%clk
01:31:04]} {[%emt 00:00:06]} 4. Nf3 {[%clk 01:31:50]} {[%emt 00:00:21]} g6
{[%clk 01:31:28]} {[%emt 00:00:06]} 5. d4 {[%clk 01:31:54]} {[%emt 00:00:25]}
Bg7 {[%clk 01:31:52]} {[%emt 00:00:06]} 6. Nbd2 {[%clk 01:32:02]} {[%emt
00:00:22]} cxd4 {[%clk 01:32:06]} {[%emt 00:00:16]} 7. Bc4 {[%clk 01:32:17]}
{[%emt 00:00:15]} Qd8 {[%clk 01:32:06]} {[%emt 00:00:30]} 8. Nxd4 {[%clk
01:31:26]} {[%emt 00:01:21]} Nf6 {[%clk 01:32:26]} {[%emt 00:00:10]} 9. O-O
{[%clk 01:31:14]} {[%emt 00:00:42]} O-O {[%clk 01:32:41]} {[%emt 00:00:15]} 10.
N2f3 {[%clk 01:24:39]} {[%emt 00:07:05]} Qc7 {[%clk 01:32:51]} {[%emt
00:00:20]} 11. Qe2 {[%clk 01:24:45]} {[%emt 00:00:24]} Bg4 {[%clk 01:30:30]}
{[%emt 00:02:51]} 12. h3 {[%clk 01:15:42]} {[%emt 00:09:34]} Bxf3 {[%clk
01:30:29]} {[%emt 00:00:31]} 13. Nxf3 {[%clk 01:16:10]} Nc6 {[%clk 01:30:34]}
{[%emt 00:00:24]} 14. Be3 {[%clk 01:10:28]} {[%emt 00:06:13]} Na5 {[%clk
01:20:07]} {[%emt 00:10:57]} 15. Bb3 {[%clk 01:07:20]} {[%emt 00:03:38]} Nxb3
{[%clk 01:16:26]} {[%emt 00:04:11]} 16. axb3 {[%clk 01:07:49]} a6 {[%clk
01:14:33]} {[%emt 00:02:24]} 17. Bd4 {[%clk 01:05:29]} {[%emt 00:02:50]} Nd5
{[%clk 01:10:16]} {[%emt 00:04:45]} 18. Rfd1 {[%clk 01:02:31]} {[%emt
00:03:28]} Rfd8 {[%clk 01:06:42]} {[%emt 00:04:04]} 19. Bxg7 {[%clk 00:55:26]}
{[%emt 00:07:35]} Kxg7 {[%clk 01:06:54]} {[%emt 00:00:18]} 20. b4 {[%clk
00:54:54]} {[%emt 00:01:03]} Kg8 {[%clk 00:56:02]} {[%emt 00:11:21]} 21. g3
{[%clk 00:52:16]} {[%emt 00:03:08]} Nf6 {[%clk 00:49:46]} {[%emt 00:06:46]} 22.
Ne5 {[%clk 00:47:47]} {[%emt 00:05:00]} Rxd1+ {[%clk 00:37:34]} {[%emt
00:12:43]} 23. Rxd1 {[%clk 00:48:12]} {[%emt 00:00:04]} Rd8 {[%clk 00:37:41]}
{[%emt 00:00:22]} 24. Rxd8+ {[%clk 00:47:51]} {[%emt 00:00:52]} Qxd8 {[%clk
00:38:10]} {[%emt 00:00:01]} 25. Qc4 {[%clk 00:32:17]} {[%emt 00:16:05]} e6
{[%clk 00:32:41]} {[%emt 00:05:58]} 26. Qf4 {[%clk 00:29:43]} {[%emt 00:03:03]}
Kg7 {[%clk 00:27:38]} {[%emt 00:05:33]} 27. g4 {[%clk 00:29:02]} {[%emt
00:01:12]} Qe7 {[%clk 00:25:45]} {[%emt 00:02:23]} 28. Qd4 {[%clk 00:26:32]}
{[%emt 00:03:00]} Kg8 {[%clk 00:23:57]} {[%emt 00:02:18]} 29. c4 {[%clk
00:21:18]} {[%emt 00:05:44]} Ne8 {[%clk 00:13:31]} {[%emt 00:10:55]} 30. Qc5
{[%clk 00:16:16]} {[%emt 00:05:32]} Qd8 {[%clk 00:12:02]} {[%emt 00:01:59]} 31.
b5 {[%clk 00:15:18]} {[%emt 00:01:29]} axb5 {[%clk 00:11:37]} {[%emt 00:00:55]}
32. Qxb5 {[%clk 00:15:37]} {[%emt 00:00:11]} Qd1+ {[%clk 00:06:24]} {[%emt
00:05:43]} 33. Kg2 {[%clk 00:15:17]} {[%emt 00:00:49]} Nd6 {[%clk 00:05:58]}
{[%emt 00:00:57]} 34. Qc5 {[%clk 00:10:48]} {[%emt 00:04:58]} b6 {[%clk
00:03:05]} {[%emt 00:03:24]} 35. Qe3 {[%clk 00:04:22]} {[%emt 00:06:55]} Nxc4
{[%clk 00:02:57]} {[%emt 00:00:39]} 36. Nxc4 {[%clk 00:04:38]} {[%emt
00:00:13]} Qd5+ {[%clk 00:03:23]} {[%emt 00:00:04]} 37. Kg1 {[%clk 00:03:29]}
{[%emt 00:01:39]} Qxc4 {[%clk 00:03:48]} {[%emt 00:00:06]} 38. Qxb6 {[%clk
00:03:56]} {[%emt 00:00:03]} Kg7 {[%clk 00:02:49]} {[%emt 00:01:29]} 39. b4
{[%clk 00:03:44]} {[%emt 00:00:42]} h5 {[%clk 00:03:00]} {[%emt 00:00:19]} 40.
Qc5 {[%clk 00:02:16]} {[%emt 00:01:58]} Qd3 {[%clk 00:02:19]} {[%emt 00:01:08]}
41. gxh5 {[%clk 00:27:42]} {[%emt 00:05:07]} Qxh3 {[%clk 00:29:57]} {[%emt
00:02:51]} 42. Qd4+ {[%clk 00:27:17]} {[%emt 00:00:55]} f6 {[%clk 00:29:44]}
{[%emt 00:00:43]} 43. h6+ {[%clk 00:24:24]} {[%emt 00:03:20]} Qxh6 {[%clk
00:29:23]} {[%emt 00:00:54]} 44. Qd7+ {[%clk 00:24:07]} {[%emt 00:00:47]} Kf8
{[%clk 00:29:45]} {[%emt 00:00:08]} 45. b5 {[%clk 00:19:58]} {[%emt 00:04:40]}
Qg5+ {[%clk 00:29:43]} {[%emt 00:00:32]} 46. Kf1 {[%clk 00:20:12]} {[%emt
00:00:15]} Qc1+ {[%clk 00:29:59]} {[%emt 00:00:15]} 47. Kg2 {[%clk 00:20:16]}
{[%emt 00:00:26]} Qg5+ {[%clk 00:30:22]} {[%emt 00:00:07]} 48. Kf3 {[%clk
00:20:28]} {[%emt 00:00:17]} Qf5+ {[%clk 00:30:17]} {[%emt 00:00:36]} 49. Ke3
{[%clk 00:20:42]} {[%emt 00:00:15]} Qc5+ {[%clk 00:30:22]} {[%emt 00:00:26]} 50.
Kd3 {[%clk 00:13:52]} {[%emt 00:07:18]} Qb6 {[%clk 00:26:08]} {[%emt 00:04:46]}
51. Kc4 {[%clk 00:13:05]} {[%emt 00:01:17]} g5 {[%clk 00:24:16]} {[%emt
00:02:22]} 52. Qd4 {[%clk 00:09:36]} {[%emt 00:03:59]} Qa5 {[%clk 00:21:56]}
{[%emt 00:02:50]} 53. Qxf6+ {[%clk 00:09:54]} {[%emt 00:00:12]} Kg8 {[%clk
00:22:21]} {[%emt 00:00:04]} 54. Qg6+ {[%clk 00:08:48]} {[%emt 00:01:36]} Kf8
{[%clk 00:22:26]} {[%emt 00:00:24]} 55. Qf6+ {[%clk 00:09:15]} {[%emt
00:00:03]} Kg8 {[%clk 00:22:52]} {[%emt 00:00:06]} 56. Qxe6+ {[%clk 00:09:42]}
{[%emt 00:00:03]} Kg7 {[%clk 00:23:16]} {[%emt 00:00:05]} 57. Qf5 {[%clk
00:09:06]} {[%emt 00:01:05]} Kh6 {[%clk 00:21:49]} {[%emt 00:01:59]} 58. Qf6+
{[%clk 00:08:45]} {[%emt 00:00:50]} Kh5 {[%clk 00:22:11]} {[%emt 00:00:08]} 59.
b6 {[%clk 00:08:34]} {[%emt 00:00:42]} Qa4+ {[%clk 00:20:13]} {[%emt 00:02:27]}
60. Kc5 {[%clk 00:08:45]} {[%emt 00:00:19]} Qc2+ {[%clk 00:20:22]} {[%emt
00:00:21]} 61. Kd6 {[%clk 00:08:44]} {[%emt 00:00:30]} Qd3+ {[%clk 00:20:03]}
{[%emt 00:00:51]} 62. Ke7 {[%clk 00:07:18]} {[%emt 00:01:54]} Qe4+ {[%clk
00:19:55]} {[%emt 00:00:40]} 63. Kf8 {[%clk 00:07:32]} {[%emt 00:00:15]} Kh4
{[%clk 00:17:52]} {[%emt 00:02:32]} 64. f4 {[%clk 00:06:40]} {[%emt 00:01:23]}
1-0

[Event "FIDE Women's Grand Swiss 2023"]
[Site "Villa Marina, Douglas, Isle of Man, Isle Of Man"]
[Date "2023.10.30"]
[Round "6.2"]
[White "Vaishali, Rameshbabu"]
[Black "Goryachkina, Aleksandra"]
[Result "1/2-1/2"]
[TimeControl "40/90 + 30 + 30s/move"]
[WhiteFideId "5091756"]
[BlackFideId "4147103"]
[WhiteElo "2448"]
[BlackElo "2558"]

1. e4 {[%clk 01:30:25]} {[%emt 00:00:34]} e5 {[%clk 01:30:41]} {[%emt
00:00:20]} 2. Nf3 {[%clk 01:30:42]} {[%emt 00:00:12]} Nc6 {[%clk 01:30:52]}
{[%emt 00:00:19]} 3. Bc4 {[%clk 01:31:05]} {[%emt 00:00:08]} Bc5 {[%clk
01:30:48]} {[%emt 00:00:34]} 4. c3 {[%clk 01:31:24]} {[%emt 00:00:11]} Nf6
{[%clk 01:30:49]} {[%emt 00:00:29]} 5. d3 {[%clk 01:31:40]} {[%emt 00:00:14]}
d6 {[%clk 01:30:48]} {[%emt 00:00:31]} 6. O-O {[%clk 01:31:53]} {[%emt
00:00:16]} h6 {[%clk 01:30:12]} {[%emt 00:01:06]} 7. Re1 {[%clk 01:31:52]}
{[%emt 00:00:31]} O-O {[%clk 01:29:54]} {[%emt 00:00:49]} 8. h3 {[%clk
01:31:59]} {[%emt 00:00:23]} Bb6 {[%clk 01:28:36]} {[%emt 00:01:48]} 9. Nbd2
{[%clk 01:31:39]} {[%emt 00:00:50]} a5 {[%clk 01:27:55]} {[%emt 00:01:11]} 10.
Bb5 {[%clk 01:24:09]} {[%emt 00:08:00]} Bd7 {[%clk 01:24:39]} {[%emt 00:03:45]}
11. a4 {[%clk 01:16:05]} {[%emt 00:08:34]} Ne7 {[%clk 01:19:28]} {[%emt
00:05:41]} 12. Bxd7 {[%clk 01:16:11]} {[%emt 00:00:24]} Nxd7 {[%clk 01:18:49]}
{[%emt 00:01:10]} 13. Nc4 {[%clk 01:14:34]} {[%emt 00:02:08]} Bc5 {[%clk
01:15:47]} {[%emt 00:03:31]} 14. d4 {[%clk 00:59:51]} {[%emt 00:15:13]} exd4
{[%clk 01:15:47]} {[%emt 00:00:30]} 15. Nxd4 {[%clk 01:00:11]} {[%emt
00:00:10]} Bxd4 {[%clk 01:06:14]} {[%emt 00:10:03]} 16. Qxd4 {[%clk 00:56:45]}
{[%emt 00:03:56]} Nc5 {[%clk 01:05:59]} {[%emt 00:00:45]} 17. Qd1 {[%clk
00:49:42]} {[%emt 00:07:33]} Qd7 {[%clk 01:04:05]} {[%emt 00:02:24]} 18. Qc2
{[%clk 00:33:12]} {[%emt 00:16:59]} Ng6 {[%clk 00:56:42]} {[%emt 00:07:54]} 19.
Be3 {[%clk 00:31:18]} {[%emt 00:02:23]} Qc6 {[%clk 00:55:01]} {[%emt 00:02:11]}
20. Nd2 {[%clk 00:26:01]} {[%emt 00:05:47]} Rfe8 {[%clk 00:52:47]} {[%emt
00:02:45]} 21. Bd4 {[%clk 00:20:41]} {[%emt 00:05:50]} Nf4 {[%clk 00:49:33]}
{[%emt 00:03:44]} 22. Re3 {[%clk 00:18:22]} {[%emt 00:02:49]} d5 {[%clk
00:41:55]} {[%emt 00:08:07]} 23. Bxc5 {[%clk 00:13:36]} {[%emt 00:05:17]} Qxc5
{[%clk 00:42:16]} {[%emt 00:00:09]} 24. Rae1 {[%clk 00:12:25]} {[%emt
00:01:40]} Re6 {[%clk 00:35:33]} {[%emt 00:07:13]} 25. Nb3 {[%clk 00:06:45]}
{[%emt 00:06:11]} Qe7 {[%clk 00:31:15]} {[%emt 00:04:48]} 26. Nd4 {[%clk
00:03:48]} {[%emt 00:03:27]} Rxe4 {[%clk 00:24:45]} {[%emt 00:07:00]} 27. Rxe4
{[%clk 00:04:10]} {[%emt 00:00:07]} dxe4 {[%clk 00:25:10]} {[%emt 00:00:05]} 28.
Qxe4 {[%clk 00:03:59]} {[%emt 00:00:42]} Qxe4 {[%clk 00:25:12]} {[%emt
00:00:28]} 29. Rxe4 {[%clk 00:04:27]} {[%emt 00:00:02]} Nd3 {[%clk 00:24:16]}
{[%emt 00:01:26]} 30. b3 {[%clk 00:03:21]} {[%emt 00:01:35]} Kf8 {[%clk
00:22:44]} {[%emt 00:02:03]} 31. Re3 {[%clk 00:03:12]} {[%emt 00:00:39]} Nc5
{[%clk 00:19:18]} {[%emt 00:03:56]} 32. Kf1 {[%clk 00:02:33]} {[%emt 00:01:09]}
Re8 {[%clk 00:18:47]} {[%emt 00:01:01]} 33. Ke2 {[%clk 00:02:42]} {[%emt
00:00:21]} Ne4 {[%clk 00:16:32]} {[%emt 00:02:44]} 34. Kf3 {[%clk 00:02:35]}
{[%emt 00:00:37]} Nc5 {[%clk 00:13:39]} {[%emt 00:03:23]} 35. h4 {[%clk
00:02:48]} {[%emt 00:00:17]} h5 {[%clk 00:13:00]} {[%emt 00:01:09]} 36. Kf4
{[%clk 00:02:35]} {[%emt 00:00:44]} Rxe3 {[%clk 00:12:36]} {[%emt 00:00:54]} 37.
Kxe3 {[%clk 00:02:49]} {[%emt 00:00:15]} Ke7 {[%clk 00:12:20]} {[%emt
00:00:46]} 38. f3 {[%clk 00:02:25]} {[%emt 00:00:54]} Kf6 {[%clk 00:11:04]}
{[%emt 00:01:47]} 39. Kf4 {[%clk 00:01:53]} {[%emt 00:01:02]} c6 {[%clk
00:10:22]} {[%emt 00:01:12]} 40. g3 {[%clk 00:01:22]} {[%emt 00:01:00]} g6
{[%clk 00:09:24]} {[%emt 00:01:28]} 41. g4 {[%clk 00:27:31]} {[%emt 00:04:22]}
Nd3+ {[%clk 00:34:12]} {[%emt 00:05:42]} 1/2-1/2

[Event "FIDE Women's Grand Swiss 2023"]
[Site "Villa Marina, Douglas, Isle of Man, Isle Of Man"]
[Date "2023.10.30"]
[Round "6.3"]
[White "Garifullina, Leya"]
[Black "Tan, Zhongyi"]
[Result "1/2-1/2"]
[TimeControl "40/90 + 30 + 30s/move"]
[WhiteFideId "34127035"]
[BlackFideId "8603642"]
[WhiteElo "2402"]
[BlackElo "2517"]

1. e4 {[%clk 01:30:46]} {[%emt 00:00:13]} d6 {[%clk 01:30:52]} {[%emt
00:00:08]} 2. d4 {[%clk 01:31:00]} {[%emt 00:00:17]} Nf6 {[%clk 01:31:17]}
{[%emt 00:00:05]} 3. Nc3 {[%clk 01:31:21]} {[%emt 00:00:09]} e5 {[%clk
01:31:42]} {[%emt 00:00:05]} 4. Nf3 {[%clk 01:30:51]} {[%emt 00:00:59]} Nbd7
{[%clk 01:32:07]} {[%emt 00:00:06]} 5. Bc4 {[%clk 01:30:50]} {[%emt 00:00:31]}
Be7 {[%clk 01:32:31]} {[%emt 00:00:04]} 6. O-O {[%clk 01:31:14]} {[%emt
00:00:08]} O-O {[%clk 01:32:54]} {[%emt 00:00:07]} 7. a4 {[%clk 01:30:55]}
{[%emt 00:00:48]} a5 {[%clk 01:32:46]} {[%emt 00:00:38]} 8. Re1 {[%clk
01:30:10]} {[%emt 00:01:16]} c6 {[%clk 01:33:07]} {[%emt 00:00:09]} 9. h3
{[%clk 01:30:26]} {[%emt 00:00:14]} exd4 {[%clk 01:33:03]} {[%emt 00:00:35]} 10.
Nxd4 {[%clk 01:29:44]} {[%emt 00:01:11]} Nc5 {[%clk 01:33:24]} {[%emt
00:00:09]} 11. Bf4 {[%clk 01:23:12]} {[%emt 00:07:02]} Be6 {[%clk 01:33:30]}
{[%emt 00:00:24]} 12. Bf1 {[%clk 01:12:44]} {[%emt 00:10:58]} Re8 {[%clk
01:33:46]} {[%emt 00:00:14]} 13. Nxe6 {[%clk 01:11:31]} {[%emt 00:01:42]} fxe6
{[%clk 01:33:06]} {[%emt 00:01:10]} 14. e5 {[%clk 01:08:17]} {[%emt 00:03:45]}
dxe5 {[%clk 01:32:56]} {[%emt 00:00:40]} 15. Qxd8 {[%clk 01:06:39]} {[%emt
00:02:08]} Raxd8 {[%clk 01:31:54]} {[%emt 00:01:33]} 16. Bxe5 {[%clk 01:07:01]}
{[%emt 00:00:07]} Nd5 {[%clk 01:31:55]} {[%emt 00:00:29]} 17. Nxd5 {[%clk
01:04:03]} {[%emt 00:03:28]} cxd5 {[%clk 01:28:40]} {[%emt 00:03:44]} 18. Bb5
{[%clk 01:01:41]} {[%emt 00:02:53]} Rf8 {[%clk 01:29:04]} {[%emt 00:00:05]} 19.
f3 {[%clk 01:00:30]} {[%emt 00:01:42]} Kf7 {[%clk 01:27:36]} {[%emt 00:01:58]}
20. Re2 {[%clk 00:56:36]} {[%emt 00:04:23]} Rc8 {[%clk 01:24:55]} {[%emt
00:03:11]} 21. Rae1 {[%clk 00:53:14]} {[%emt 00:03:53]} Bh4 {[%clk 01:24:28]}
{[%emt 00:00:57]} 22. g3 {[%clk 00:52:23]} {[%emt 00:01:22]} Bf6 {[%clk
01:24:53]} {[%emt 00:00:04]} 23. c3 {[%clk 00:51:21]} {[%emt 00:01:32]} Rfd8
{[%clk 01:10:29]} {[%emt 00:14:53]} 24. Bxf6 {[%clk 00:44:05]} {[%emt
00:07:47]} gxf6 {[%clk 01:10:52]} {[%emt 00:00:07]} 25. b4 {[%clk 00:42:26]}
{[%emt 00:02:09]} Nd7 {[%clk 01:10:48]} {[%emt 00:00:33]} 26. Bxd7 {[%clk
00:33:39]} {[%emt 00:09:18]} Rxd7 {[%clk 01:11:13]} {[%emt 00:00:05]} 27. Rxe6
{[%clk 00:33:42]} {[%emt 00:00:27]} Rxc3 {[%clk 01:11:35]} {[%emt 00:00:08]} 28.
bxa5 {[%clk 00:33:00]} {[%emt 00:01:12]} Rxf3 {[%clk 01:12:01]} {[%emt
00:00:04]} 29. R6e3 {[%clk 00:29:01]} {[%emt 00:04:30]} Rxe3 {[%clk 01:12:23]}
{[%emt 00:00:07]} 30. Rxe3 {[%clk 00:29:29]} {[%emt 00:00:03]} d4 {[%clk
01:12:42]} {[%emt 00:00:10]} 31. Re1 {[%clk 00:29:33]} {[%emt 00:00:27]} d3
{[%clk 01:08:18]} {[%emt 00:04:54]} 32. Kf2 {[%clk 00:29:58]} {[%emt 00:00:03]}
d2 {[%clk 01:08:41]} {[%emt 00:00:07]} 33. Rd1 {[%clk 00:30:27]} {[%emt
00:00:02]} Ke6 {[%clk 01:08:57]} {[%emt 00:00:13]} 34. Ke3 {[%clk 00:30:33]}
{[%emt 00:00:25]} Ke5 {[%clk 01:09:21]} {[%emt 00:00:06]} 35. g4 {[%clk
00:27:42]} {[%emt 00:03:21]} Rd4 {[%clk 01:05:56]} {[%emt 00:03:55]} 36. Rxd2
{[%clk 00:22:43]} {[%emt 00:05:29]} Rxd2 {[%clk 01:01:05]} {[%emt 00:05:21]} 37.
Kxd2 {[%clk 00:22:48]} {[%emt 00:00:24]} Kf4 {[%clk 01:00:33]} {[%emt
00:01:03]} 38. Kc3 {[%clk 00:22:43]} {[%emt 00:00:36]} Kg3 {[%clk 00:52:36]}
{[%emt 00:08:27]} 39. Kb4 {[%clk 00:22:47]} {[%emt 00:00:26]} Kxh3 {[%clk
00:52:59]} {[%emt 00:00:06]} 40. Kb5 {[%clk 00:23:15]} {[%emt 00:00:02]} Kxg4
{[%clk 00:53:16]} {[%emt 00:00:13]} 41. Kb6 {[%clk 00:23:42]} {[%emt 00:00:03]}
h5 {[%clk 00:53:16]} {[%emt 00:00:30]} 42. Kxb7 {[%clk 00:24:09]} {[%emt
00:00:04]} h4 {[%clk 00:53:27]} {[%emt 00:00:17]} 43. a6 {[%clk 00:24:37]}
{[%emt 00:00:03]} h3 {[%clk 00:53:53]} {[%emt 00:00:03]} 44. a7 {[%clk
00:25:06]} {[%emt 00:00:02]} h2 {[%clk 00:54:18]} {[%emt 00:00:04]} 45. a8=Q
{[%clk 00:25:32]} {[%emt 00:00:05]} h1=Q+ {[%clk 00:54:42]} {[%emt 00:00:06]}
46. Kb8 {[%clk 00:25:40]} {[%emt 00:00:22]} Qh2+ {[%clk 00:54:34]} {[%emt
00:00:36]} 47. Kb7 {[%clk 00:26:00]} {[%emt 00:00:12]} Qb2+ {[%clk 00:54:18]}
{[%emt 00:00:46]} 48. Kc7 {[%clk 00:26:08]} {[%emt 00:00:22]} Qe5+ {[%clk
00:54:41]} {[%emt 00:00:06]} 49. Kb6 {[%clk 00:26:13]} {[%emt 00:00:26]} Qd4+
{[%clk 00:54:36]} {[%emt 00:00:35]} 50. Kc7 {[%clk 00:26:34]} {[%emt 00:00:09]}
f5 {[%clk 00:54:26]} {[%emt 00:00:40]} 51. Qg2+ {[%clk 00:26:38]} {[%emt
00:00:26]} Kh4 {[%clk 00:54:23]} {[%emt 00:00:30]} 52. Qh2+ {[%clk 00:26:57]}
{[%emt 00:00:13]} Kg5 {[%clk 00:54:27]} {[%emt 00:00:25]} 53. Qg3+ {[%clk
00:26:49]} {[%emt 00:00:40]} Kh5 {[%clk 00:53:21]} {[%emt 00:01:35]} 54. Qh2+
{[%clk 00:27:07]} {[%emt 00:00:12]} Kg4 {[%clk 00:53:20]} {[%emt 00:00:31]} 55.
Qg2+ {[%clk 00:27:33]} {[%emt 00:00:05]} Kf4 {[%clk 00:53:09]} {[%emt
00:00:39]} 56. Qh2+ {[%clk 00:27:24]} {[%emt 00:00:41]} Kf3 {[%clk 00:51:30]}
{[%emt 00:02:08]} 57. Qh3+ {[%clk 00:27:43]} {[%emt 00:00:11]} Ke4 {[%clk
00:51:33]} {[%emt 00:00:26]} 58. Qg2+ {[%clk 00:28:04]} {[%emt 00:00:10]} Kf4
{[%clk 00:51:40]} {[%emt 00:00:24]} 59. Qh2+ {[%clk 00:28:27]} {[%emt
00:00:08]} Kg5 {[%clk 00:51:42]} {[%emt 00:00:27]} 60. Qg3+ {[%clk 00:28:51]}
{[%emt 00:00:06]} Kf6 {[%clk 00:51:50]} {[%emt 00:00:21]} 61. Qd6+ {[%clk
00:29:02]} {[%emt 00:00:20]} Qxd6+ {[%clk 00:52:16]} {[%emt 00:00:04]} 62. Kxd6
{[%clk 00:29:29]} {[%emt 00:00:03]} f4 {[%clk 00:52:39]} {[%emt 00:00:07]} 63.
a5 {[%clk 00:29:57]} {[%emt 00:00:02]} f3 {[%clk 00:52:57]} {[%emt 00:00:12]}
1/2-1/2